[Event "Early-Titled-Tuesday-Blitz-March-05-2024"]
[Site "Chess.com"]
[Date "2024.03.05"]
[Round "5"]
[White "Rosh1610"]
[Black "BeautiFullMindChess"]
[Result "0-1"]
[WhiteElo "2418"]
[BlackElo "2306"]
[TimeControl "180+1"]
[EndTime "8:57:55 PST"]
[Termination "BeautiFullMindChess won by checkmate"]

1. e4 {[%clk 0:02:53.3]} 1... c5 {[%clk 0:02:59.8]} 2. Nf3 {[%clk 0:02:52.9]}
2... Nc6 {[%clk 0:03:00]} 3. d4 {[%clk 0:02:52.9]} 3... cxd4 {[%clk 0:03:00.9]}
4. Nxd4 {[%clk 0:02:53.5]} 4... Nf6 {[%clk 0:03:01.8]} 5. Nc3 {[%clk 0:02:53.7]}
5... e5 {[%clk 0:03:01.8]} 6. Ndb5 {[%clk 0:02:54.2]} 6... d6 {[%clk 0:03:02.1]}
7. Bg5 {[%clk 0:02:54.5]} 7... a6 {[%clk 0:03:02.7]} 8. Na3 {[%clk 0:02:54.3]}
8... b5 {[%clk 0:03:02.8]} 9. Nd5 {[%clk 0:02:54.5]} 9... Be7 {[%clk 0:03:03.3]}
10. Bxf6 {[%clk 0:02:54.4]} 10... Bxf6 {[%clk 0:03:04.2]} 11. c3 {[%clk
0:02:54.2]} 11... Bb7 {[%clk 0:03:03.2]} 12. Nc2 {[%clk 0:02:53.5]} 12... Nb8
{[%clk 0:03:01.4]} 13. Nce3 {[%clk 0:02:52]} 13... Nd7 {[%clk 0:03:00.5]} 14.
Be2 {[%clk 0:02:52.3]} 14... Bg5 {[%clk 0:02:59.4]} 15. Nf5 {[%clk 0:02:51.2]}
15... O-O {[%clk 0:02:33]} 16. Nxd6 {[%clk 0:02:51]} 16... Bxd5 {[%clk
0:02:28.6]} 17. Qxd5 {[%clk 0:02:49.1]} 17... Nb6 {[%clk 0:02:03.2]} 18. Qd3
{[%clk 0:02:43.4]} 18... Na4 {[%clk 0:01:48.5]} 19. Rb1 {[%clk 0:02:26.1]} 19...
Qb6 {[%clk 0:01:18.7]} 20. Nf5 {[%clk 0:01:56.2]} 20... Rad8 {[%clk 0:01:17.6]}
21. Qg3 {[%clk 0:01:56]} 21... Bd2+ {[%clk 0:01:12.8]} 22. Kf1 {[%clk 0:01:56]}
22... g6 {[%clk 0:01:13]} 23. Ne7+ {[%clk 0:01:55.7]} 23... Kg7 {[%clk
0:01:10.8]} 24. Nd5 {[%clk 0:01:55.7]} 24... Qe6 {[%clk 0:01:06.7]} 25. h4
{[%clk 0:01:45.2]} 25... f5 {[%clk 0:00:45.7]} 26. h5 {[%clk 0:01:28]} 26...
fxe4 {[%clk 0:00:37.2]} 27. hxg6 {[%clk 0:01:18.7]} 27... hxg6 {[%clk 0:00:24]}
28. Ne3 {[%clk 0:01:17.7]} 28... Nc5 {[%clk 0:00:14.3]} 29. Bg4 {[%clk
0:00:59.4]} 29... Qf6 {[%clk 0:00:13.5]} 30. Ke2 {[%clk 0:00:35.9]} 30... Bxe3
{[%clk 0:00:13.1]} 31. Qxe3 {[%clk 0:00:34.1]} 31... Nd3 {[%clk 0:00:13]} 32.
Rbf1 {[%clk 0:00:26.5]} 32... Nf4+ {[%clk 0:00:12.2]} 33. Ke1 {[%clk 0:00:25.6]}
33... Nxg2+ {[%clk 0:00:12]} 34. Ke2 {[%clk 0:00:25.5]} 34... Nxe3 {[%clk
0:00:12.5]} 35. fxe3 {[%clk 0:00:26.4]} 35... Qg5 {[%clk 0:00:12.9]} 36. Rfg1
{[%clk 0:00:26.4]} 36... Qf6 {[%clk 0:00:11.5]} 37. Bh5 {[%clk 0:00:25.6]} 37...
Qf2# {[%clk 0:00:11.5]} 0-1

[Event "Early-Titled-Tuesday-Blitz-March-05-2024"]
[Site "Chess.com"]
[Date "2024.03.05"]
[Round "5"]
[White "StankovicIvan"]
[Black "FoggyMorning"]
[Result "1-0"]
[WhiteElo "2527"]
[BlackElo "2699"]
[TimeControl "180+1"]
[EndTime "8:57:56 PST"]
[Termination "StankovicIvan won by resignation"]

1. e4 {[%clk 0:03:00.9]} 1... e6 {[%clk 0:03:00]} 2. d3 {[%clk 0:02:59]} 2... c5
{[%clk 0:02:59.7]} 3. g3 {[%clk 0:02:55.7]} 3... Nc6 {[%clk 0:03:00.1]} 4. Bg2
{[%clk 0:02:55.5]} 4... g6 {[%clk 0:03:00.7]} 5. c4 {[%clk 0:02:55.7]} 5... Bg7
{[%clk 0:03:01.1]} 6. Nc3 {[%clk 0:02:56]} 6... Nge7 {[%clk 0:03:01.5]} 7. Nge2
{[%clk 0:02:56.4]} 7... O-O {[%clk 0:03:01.9]} 8. O-O {[%clk 0:02:57]} 8... Rb8
{[%clk 0:02:57.2]} 9. Be3 {[%clk 0:02:54.6]} 9... d6 {[%clk 0:02:57]} 10. d4
{[%clk 0:02:54.1]} 10... cxd4 {[%clk 0:02:53.8]} 11. Nxd4 {[%clk 0:02:55]} 11...
a6 {[%clk 0:02:54.2]} 12. Rc1 {[%clk 0:02:52.2]} 12... Bd7 {[%clk 0:02:44.7]}
13. Qd2 {[%clk 0:02:47.9]} 13... Qc7 {[%clk 0:01:25.4]} 14. Rfd1 {[%clk
0:02:47.1]} 14... Rfd8 {[%clk 0:01:17.9]} 15. b3 {[%clk 0:02:42.8]} 15... Be8
{[%clk 0:01:14.3]} 16. Nd5 {[%clk 0:02:39]} 16... exd5 {[%clk 0:00:44.5]} 17.
cxd5 {[%clk 0:02:38.6]} 17... Qa5 {[%clk 0:00:20.7]} 18. dxc6 {[%clk 0:02:38.6]}
18... Qxd2 {[%clk 0:00:20.8]} 19. Rxd2 {[%clk 0:02:38]} 19... bxc6 {[%clk
0:00:18.2]} 20. Rcd1 {[%clk 0:02:20.4]} 20... d5 {[%clk 0:00:17.1]} 21. Bg5
{[%clk 0:02:16.3]} 21... f6 {[%clk 0:00:10]} 22. Bf4 {[%clk 0:02:16.3]} 22...
Rbc8 {[%clk 0:00:07.7]} 23. Ne6 {[%clk 0:02:14.9]} 23... Rd7 {[%clk 0:00:08.1]}
24. exd5 {[%clk 0:02:05.3]} 24... cxd5 {[%clk 0:00:08.2]} 25. Be3 {[%clk
0:01:47.4]} 25... Bf7 {[%clk 0:00:07.6]} 26. Nc5 {[%clk 0:01:43.5]} 26... Rdc7
{[%clk 0:00:06.6]} 27. Nxa6 {[%clk 0:01:42.1]} 27... Rc2 {[%clk 0:00:07.2]} 28.
h4 {[%clk 0:01:36.8]} 28... f5 {[%clk 0:00:06.5]} 29. Rxc2 {[%clk 0:01:33.1]}
29... Rxc2 {[%clk 0:00:06]} 30. Nb4 {[%clk 0:01:33.7]} 30... Rb2 {[%clk
0:00:03]} 31. Bc5 {[%clk 0:01:15.3]} 31... Nc8 {[%clk 0:00:02]} 32. Bxd5 {[%clk
0:01:14.6]} 32... Bxd5 {[%clk 0:00:02.2]} 33. Rxd5 {[%clk 0:01:14.3]} 33... Bf6
{[%clk 0:00:02.5]} 34. Bd4 {[%clk 0:01:02.5]} 34... Rb1+ {[%clk 0:00:02.3]} 35.
Kg2 {[%clk 0:01:02.4]} 35... Be7 {[%clk 0:00:02.7]} 36. Nc6 {[%clk 0:01:00.2]}
36... Bf8 {[%clk 0:00:03.4]} 37. Rd8 {[%clk 0:00:59.9]} 37... Nd6 {[%clk
0:00:03.2]} 38. Bc5 {[%clk 0:00:56.8]} 38... Rd1 {[%clk 0:00:03.1]} 39. b4
{[%clk 0:00:50]} 39... Kf7 {[%clk 0:00:02.9]} 40. a4 {[%clk 0:00:47.3]} 40...
Be7 {[%clk 0:00:01.9]} 41. Rd7 {[%clk 0:00:45.4]} 41... Ke6 {[%clk 0:00:01.9]}
42. Rxe7+ {[%clk 0:00:45.3]} 42... Kd5 {[%clk 0:00:02.5]} 43. Rd7 {[%clk
0:00:42.5]} 43... Kxc6 {[%clk 0:00:02.7]} 44. Rxd6+ {[%clk 0:00:42.6]} 44...
Rxd6 {[%clk 0:00:03.3]} 45. Bxd6 {[%clk 0:00:43.5]} 45... Kxd6 {[%clk
0:00:04.2]} 46. Kf3 {[%clk 0:00:43.8]} 1-0

[Event "Early-Titled-Tuesday-Blitz-March-05-2024"]
[Site "Chess.com"]
[Date "2024.03.05"]
[Round "5"]
[White "mfschulz"]
[Black "effefe"]
[Result "1-0"]
[WhiteElo "2275"]
[BlackElo "2400"]
[TimeControl "180+1"]
[EndTime "8:57:56 PST"]
[Termination "mfschulz won by resignation"]

1. d4 {[%clk 0:03:00.9]} 1... Nf6 {[%clk 0:02:57.9]} 2. Bg5 {[%clk 0:03:00.1]}
2... c5 {[%clk 0:02:57.4]} 3. d5 {[%clk 0:02:59.6]} 3... Qb6 {[%clk 0:02:57]} 4.
Nc3 {[%clk 0:02:59.5]} 4... Qxb2 {[%clk 0:02:57]} 5. Bd2 {[%clk 0:02:59.5]} 5...
Qb6 {[%clk 0:02:54.7]} 6. e4 {[%clk 0:02:59.7]} 6... d6 {[%clk 0:02:54.4]} 7. f4
{[%clk 0:02:59.8]} 7... g6 {[%clk 0:02:52.8]} 8. Nf3 {[%clk 0:02:59]} 8... Bg7
{[%clk 0:02:53]} 9. Rb1 {[%clk 0:02:58.6]} 9... Qd8 {[%clk 0:02:52.1]} 10. Bb5+
{[%clk 0:02:51.8]} 10... Nfd7 {[%clk 0:02:50.9]} 11. e5 {[%clk 0:02:43.3]} 11...
a6 {[%clk 0:02:51.1]} 12. Bxd7+ {[%clk 0:02:41.6]} 12... Nxd7 {[%clk 0:02:47.8]}
13. e6 {[%clk 0:02:41.4]} 13... fxe6 {[%clk 0:02:44.7]} 14. dxe6 {[%clk
0:02:41.6]} 14... Nf8 {[%clk 0:02:37.9]} 15. Ng5 {[%clk 0:02:41.4]} 15... Nxe6
{[%clk 0:02:34.8]} 16. Nxe6 {[%clk 0:02:40.1]} 16... Bxe6 {[%clk 0:02:34.9]} 17.
Rxb7 {[%clk 0:02:40]} 17... O-O {[%clk 0:02:18]} 18. O-O {[%clk 0:02:39.7]}
18... Bd4+ {[%clk 0:01:40]} 19. Kh1 {[%clk 0:02:38.3]} 19... Rb8 {[%clk
0:01:27.5]} 20. Rxb8 {[%clk 0:02:33.9]} 20... Qxb8 {[%clk 0:01:28.4]} 21. Qe2
{[%clk 0:02:32.7]} 21... Qc8 {[%clk 0:01:05.7]} 22. Re1 {[%clk 0:02:26.7]} 22...
Bf7 {[%clk 0:00:22.7]} 23. Qxe7 {[%clk 0:02:22.2]} 23... Re8 {[%clk 0:00:23.1]}
24. Qxd6 {[%clk 0:02:18.2]} 24... Rxe1+ {[%clk 0:00:23.7]} 25. Bxe1 {[%clk
0:02:18]} 25... Qe8 {[%clk 0:00:23.1]} 26. Bd2 {[%clk 0:02:06.4]} 26... h5
{[%clk 0:00:05.8]} 27. h3 {[%clk 0:02:03.4]} 27... Kh7 {[%clk 0:00:04.7]} 28. f5
{[%clk 0:01:55.6]} 28... gxf5 {[%clk 0:00:04.2]} 29. Qh6+ {[%clk 0:01:52]} 29...
Kg8 {[%clk 0:00:04.5]} 30. Qg5+ {[%clk 0:01:50.3]} 30... Bg6 {[%clk 0:00:02.9]}
31. Nd5 {[%clk 0:01:46.6]} 31... Kf7 {[%clk 0:00:02.8]} 32. c3 {[%clk
0:01:38.3]} 32... Qe6 {[%clk 0:00:02]} 33. Nf4 {[%clk 0:01:35.3]} 33... Qf6
{[%clk 0:00:02.5]} 34. Qxg6+ {[%clk 0:01:28.6]} 34... Qxg6 {[%clk 0:00:02.6]}
35. Nxg6 {[%clk 0:01:28.8]} 35... Bf6 {[%clk 0:00:01.5]} 36. Nf4 {[%clk
0:01:28.1]} 36... h4 {[%clk 0:00:02.1]} 37. Nd5 {[%clk 0:01:21.3]} 37... Be5
{[%clk 0:00:02]} 38. Kg1 {[%clk 0:01:18.4]} 38... Ke6 {[%clk 0:00:02.3]} 39. Ne3
{[%clk 0:01:15.8]} 39... Kd6 {[%clk 0:00:01.4]} 40. Nc4+ {[%clk 0:01:13.8]}
40... Kd5 {[%clk 0:00:01.5]} 41. Nxe5 {[%clk 0:01:13.9]} 41... Kxe5 {[%clk
0:00:02.4]} 42. Bg5 {[%clk 0:01:13.6]} 42... Ke4 {[%clk 0:00:02.2]} 43. Bxh4
{[%clk 0:01:13.7]} 43... Kd3 {[%clk 0:00:02.9]} 44. Bf6 {[%clk 0:01:13.5]} 44...
Kc2 {[%clk 0:00:02.5]} 45. h4 {[%clk 0:01:12]} 45... a5 {[%clk 0:00:02.6]} 46.
h5 {[%clk 0:01:12.3]} 46... a4 {[%clk 0:00:03.4]} 47. h6 {[%clk 0:01:12.6]}
47... a3 {[%clk 0:00:04.3]} 48. h7 {[%clk 0:01:12.1]} 48... Kb2 {[%clk
0:00:05.2]} 49. h8=Q {[%clk 0:01:11.9]} 49... Kxa2 {[%clk 0:00:06.1]} 50. Qa8
{[%clk 0:01:09.1]} 50... Kb3 {[%clk 0:00:06.3]} 51. Qb7+ {[%clk 0:01:09.2]}
51... Kc2 {[%clk 0:00:06.2]} 52. c4 {[%clk 0:01:01.8]} 52... a2 {[%clk
0:00:05.6]} 53. Qb2+ {[%clk 0:01:01.7]} 53... Kd3 {[%clk 0:00:06.1]} 54. Qxa2
{[%clk 0:01:01.8]} 1-0

[Event "Early-Titled-Tuesday-Blitz-March-05-2024"]
[Site "Chess.com"]
[Date "2024.03.05"]
[Round "5"]
[White "KanalSzachowy"]
[Black "AlexandraSamaganova"]
[Result "1-0"]
[WhiteElo "2453"]
[BlackElo "2296"]
[TimeControl "180+1"]
[EndTime "8:57:57 PST"]
[Termination "KanalSzachowy won on time"]

1. e4 {[%clk 0:03:00.9]} 1... c5 {[%clk 0:02:58.7]} 2. Nc3 {[%clk 0:03:00.5]}
2... e6 {[%clk 0:02:56.7]} 3. Nf3 {[%clk 0:03:00.6]} 3... a6 {[%clk 0:02:56.6]}
4. d4 {[%clk 0:03:01.2]} 4... cxd4 {[%clk 0:02:56.8]} 5. Nxd4 {[%clk 0:03:02.1]}
5... b5 {[%clk 0:02:56.9]} 6. Bd3 {[%clk 0:03:01.3]} 6... Qb6 {[%clk 0:02:55.3]}
7. Nf3 {[%clk 0:03:00.9]} 7... Bb7 {[%clk 0:02:55.2]} 8. O-O {[%clk 0:02:58.8]}
8... Nf6 {[%clk 0:02:53.6]} 9. e5 {[%clk 0:02:54.2]} 9... Nd5 {[%clk 0:02:52.8]}
10. Ne4 {[%clk 0:02:51.9]} 10... Be7 {[%clk 0:02:48.9]} 11. Nfg5 {[%clk
0:02:37.9]} 11... Nc6 {[%clk 0:02:30.3]} 12. Nf3 {[%clk 0:02:31]} 12... Qc7
{[%clk 0:02:20.3]} 13. Re1 {[%clk 0:02:26.8]} 13... O-O {[%clk 0:02:08.4]} 14.
Bg5 {[%clk 0:02:12.9]} 14... f5 {[%clk 0:02:01.9]} 15. exf6 {[%clk 0:02:08.2]}
15... Nxf6 {[%clk 0:02:00.7]} 16. c3 {[%clk 0:01:59.5]} 16... Rae8 {[%clk
0:01:33.7]} 17. Qc2 {[%clk 0:01:44.2]} 17... Nd5 {[%clk 0:00:59.4]} 18. Bxe7
{[%clk 0:01:42.7]} 18... Ncxe7 {[%clk 0:00:57.2]} 19. Rad1 {[%clk 0:01:30.5]}
19... Nf4 {[%clk 0:00:51.1]} 20. Bf1 {[%clk 0:01:26]} 20... Neg6 {[%clk
0:00:43]} 21. g3 {[%clk 0:01:23.3]} 21... Nd5 {[%clk 0:00:29.7]} 22. Bg2 {[%clk
0:01:23.2]} 22... Nf6 {[%clk 0:00:28.1]} 23. Nd6 {[%clk 0:01:21.1]} 23... Rb8
{[%clk 0:00:23.7]} 24. Nxb7 {[%clk 0:01:18.4]} 24... Rxb7 {[%clk 0:00:23.1]} 25.
h4 {[%clk 0:01:18]} 25... Rb6 {[%clk 0:00:17.2]} 26. h5 {[%clk 0:01:17.6]} 26...
Nxh5 {[%clk 0:00:15.4]} 27. Qd3 {[%clk 0:01:08.6]} 27... Qc5 {[%clk 0:00:14.3]}
28. Qxd7 {[%clk 0:01:04.2]} 28... Nxg3 {[%clk 0:00:12.3]} 29. b4 {[%clk
0:01:04.6]} 29... Qxc3 {[%clk 0:00:07.9]} 30. fxg3 {[%clk 0:00:55.5]} 30... Rxf3
{[%clk 0:00:06.8]} 31. Qd8+ {[%clk 0:00:56]} 31... Rf8 {[%clk 0:00:05.4]} 32.
Qxb6 {[%clk 0:00:56.5]} 32... Qxg3 {[%clk 0:00:04.7]} 33. Qxe6+ {[%clk
0:00:50.2]} 33... Kh8 {[%clk 0:00:04.7]} 34. Qe3 {[%clk 0:00:48.8]} 34... Qg4
{[%clk 0:00:04.1]} 35. Rd4 {[%clk 0:00:42.8]} 35... Qc8 {[%clk 0:00:02.1]} 36.
Re4 {[%clk 0:00:41.2]} 36... Qb8 {[%clk 0:00:01.2]} 37. Re8 {[%clk 0:00:38]} 1-0

[Event "Early-Titled-Tuesday-Blitz-March-05-2024"]
[Site "Chess.com"]
[Date "2024.03.05"]
[Round "5"]
[White "tusplingher"]
[Black "atbenina64"]
[Result "0-1"]
[WhiteElo "2445"]
[BlackElo "2729"]
[TimeControl "180+1"]
[EndTime "8:57:59 PST"]
[Termination "atbenina64 won by resignation"]

1. e4 {[%clk 0:03:00.9]} 1... c5 {[%clk 0:02:48.6]} 2. Nf3 {[%clk 0:02:59.8]}
2... d6 {[%clk 0:02:48.5]} 3. Bb5+ {[%clk 0:02:59]} 3... Bd7 {[%clk 0:02:43.7]}
4. Bxd7+ {[%clk 0:02:57.2]} 4... Nxd7 {[%clk 0:02:44.6]} 5. O-O {[%clk
0:02:57.3]} 5... Ngf6 {[%clk 0:02:44.2]} 6. Re1 {[%clk 0:02:57.1]} 6... e6
{[%clk 0:02:43.8]} 7. c3 {[%clk 0:02:57.1]} 7... Be7 {[%clk 0:02:42.2]} 8. d4
{[%clk 0:02:57.4]} 8... O-O {[%clk 0:02:43.1]} 9. h3 {[%clk 0:02:55.3]} 9... b5
{[%clk 0:02:42.3]} 10. a4 {[%clk 0:02:51.8]} 10... a6 {[%clk 0:02:40.7]} 11. Bf4
{[%clk 0:02:46.3]} 11... Qb6 {[%clk 0:02:38.8]} 12. Nbd2 {[%clk 0:02:43.5]}
12... Rfc8 {[%clk 0:02:31.7]} 13. e5 {[%clk 0:02:21]} 13... dxe5 {[%clk
0:02:26.5]} 14. Nxe5 {[%clk 0:02:20.8]} 14... Nxe5 {[%clk 0:02:21.8]} 15. Bxe5
{[%clk 0:02:17.6]} 15... Nd7 {[%clk 0:02:15.7]} 16. dxc5 {[%clk 0:02:04.1]}
16... Nxc5 {[%clk 0:02:02.8]} 17. axb5 {[%clk 0:01:41]} 17... Nd3 {[%clk
0:01:55]} 18. Bd4 {[%clk 0:01:33.9]} 18... Qxb5 {[%clk 0:01:55]} 19. Re3 {[%clk
0:01:03.1]} 19... Nxb2 {[%clk 0:01:52.9]} 20. Qg4 {[%clk 0:01:02.9]} 20... Bf8
{[%clk 0:01:52.7]} 21. Rb1 {[%clk 0:00:56.8]} 21... Rab8 {[%clk 0:01:43.9]} 22.
c4 {[%clk 0:00:42.9]} 22... Qd7 {[%clk 0:01:40.4]} 23. Rg3 {[%clk 0:00:11.8]}
23... f5 {[%clk 0:01:39.7]} 24. Qf4 {[%clk 0:00:11.9]} 24... Nd3 {[%clk
0:01:31.1]} 25. Rxd3 {[%clk 0:00:05.9]} 25... Rxb1+ {[%clk 0:01:30.5]} 26. Nxb1
{[%clk 0:00:06.8]} 26... Rxc4 {[%clk 0:01:29.7]} 27. Rd1 {[%clk 0:00:02.8]}
27... Bc5 {[%clk 0:01:15.4]} 28. Qb8+ {[%clk 0:00:03]} 28... Kf7 {[%clk
0:01:15.8]} 29. Bxc5 {[%clk 0:00:01.1]} 29... Qxd1+ {[%clk 0:01:15.7]} 30. Kh2
{[%clk 0:00:01.8]} 30... Rxc5 {[%clk 0:01:09.7]} 31. Qa7+ {[%clk 0:00:01.7]}
31... Kg6 {[%clk 0:01:08.6]} 32. Qxc5 {[%clk 0:00:02]} 32... Qxb1 {[%clk
0:01:09.1]} 33. Qe7 {[%clk 0:00:02.2]} 33... Qb6 {[%clk 0:01:05.6]} 34. Qe8+
{[%clk 0:00:02.3]} 34... Kh6 {[%clk 0:01:05.9]} 35. Qe7 {[%clk 0:00:02.8]} 35...
Qxf2 {[%clk 0:00:35.1]} 36. Qxe6+ {[%clk 0:00:02.6]} 36... g6 {[%clk 0:00:35.8]}
37. Qxa6 {[%clk 0:00:02.3]} 37... Kg5 {[%clk 0:00:34.2]} 38. Qc4 {[%clk
0:00:02]} 38... Qf4+ {[%clk 0:00:33.9]} 39. Qxf4+ {[%clk 0:00:02.4]} 39... Kxf4
{[%clk 0:00:34.8]} 40. Kg1 {[%clk 0:00:02.5]} 40... Kg3 {[%clk 0:00:34.6]} 0-1

[Event "Early-Titled-Tuesday-Blitz-March-05-2024"]
[Site "Chess.com"]
[Date "2024.03.05"]
[Round "5"]
[White "TheAlienParty"]
[Black "NarminSoyunlu"]
[Result "1-0"]
[WhiteElo "2391"]
[BlackElo "2187"]
[TimeControl "180+1"]
[EndTime "8:58:00 PST"]
[Termination "TheAlienParty won by resignation"]

1. c4 {[%clk 0:02:59.7]} 1... Nf6 {[%clk 0:02:58.1]} 2. Nc3 {[%clk 0:02:48.3]}
2... e6 {[%clk 0:02:57.7]} 3. e4 {[%clk 0:02:45.8]} 3... d5 {[%clk 0:02:53.5]}
4. e5 {[%clk 0:02:45.2]} 4... Nfd7 {[%clk 0:02:46]} 5. cxd5 {[%clk 0:02:44]}
5... Nxe5 {[%clk 0:02:44.6]} 6. dxe6 {[%clk 0:02:43.5]} 6... Bxe6 {[%clk
0:02:44.6]} 7. d4 {[%clk 0:02:43.2]} 7... Ned7 {[%clk 0:02:37.1]} 8. Nf3 {[%clk
0:02:41.9]} 8... c6 {[%clk 0:02:35.5]} 9. Bd3 {[%clk 0:02:37.8]} 9... Bb4 {[%clk
0:02:33.3]} 10. h4 {[%clk 0:02:37.1]} 10... Nf6 {[%clk 0:02:26.8]} 11. Ng5
{[%clk 0:02:31]} 11... Bg4 {[%clk 0:02:26]} 12. Qb3 {[%clk 0:02:29.1]} 12...
Qe7+ {[%clk 0:02:22.2]} 13. Be3 {[%clk 0:02:26.2]} 13... a5 {[%clk 0:02:14.6]}
14. a3 {[%clk 0:02:24.7]} 14... Bd6 {[%clk 0:02:11.9]} 15. Bc4 {[%clk
0:02:23.3]} 15... O-O {[%clk 0:02:01.8]} 16. O-O {[%clk 0:02:18.6]} 16... b5
{[%clk 0:01:59.6]} 17. Bd3 {[%clk 0:02:11.2]} 17... h6 {[%clk 0:01:59.6]} 18.
Nge4 {[%clk 0:02:05]} 18... Nxe4 {[%clk 0:01:53.3]} 19. Nxe4 {[%clk 0:02:03.4]}
19... Bc7 {[%clk 0:01:47.9]} 20. g3 {[%clk 0:01:58.1]} 20... Bf3 {[%clk
0:01:40.3]} 21. Qc2 {[%clk 0:01:46.2]} 21... Qd7 {[%clk 0:01:27.6]} 22. Nd2
{[%clk 0:01:41.6]} 22... Bd5 {[%clk 0:01:27.2]} 23. Be4 {[%clk 0:01:34.6]} 23...
Re8 {[%clk 0:01:20.8]} 24. Bxd5 {[%clk 0:01:33]} 24... Qxd5 {[%clk 0:01:20.9]}
25. Qc5 {[%clk 0:01:29.7]} 25... Rd8 {[%clk 0:01:10.4]} 26. Rac1 {[%clk
0:01:26.4]} 26... Bd6 {[%clk 0:00:56.8]} 27. Qxd5 {[%clk 0:01:25.6]} 27... cxd5
{[%clk 0:00:57.7]} 28. Nb3 {[%clk 0:01:22.8]} 28... Re8 {[%clk 0:00:57.9]} 29.
Kg2 {[%clk 0:01:20.9]} 29... Ra7 {[%clk 0:00:54.3]} 30. Kf3 {[%clk 0:01:17.8]}
30... a4 {[%clk 0:00:54.2]} 31. Nc5 {[%clk 0:01:16.5]} 31... Rc7 {[%clk
0:00:54.6]} 32. Nd3 {[%clk 0:01:13.6]} 32... Nd7 {[%clk 0:00:54.2]} 33. Rxc7
{[%clk 0:01:11.5]} 33... Bxc7 {[%clk 0:00:55.1]} 34. Rc1 {[%clk 0:01:11.5]}
34... Bb8 {[%clk 0:00:51.5]} 35. Rc6 {[%clk 0:01:11.1]} 35... Nf6 {[%clk
0:00:51.3]} 36. Rb6 {[%clk 0:01:10.6]} 36... Ba7 {[%clk 0:00:43.4]} 37. Rxb5
{[%clk 0:01:10]} 37... Rc8 {[%clk 0:00:40.6]} 38. Ra5 {[%clk 0:01:09.7]} 38...
Bb6 {[%clk 0:00:40.4]} 39. Rxa4 {[%clk 0:01:09.3]} 39... Rc2 {[%clk 0:00:41.1]}
40. b4 {[%clk 0:01:08.9]} 40... Rc4 {[%clk 0:00:40.8]} 41. Ne5 {[%clk
0:01:06.6]} 41... Rc3 {[%clk 0:00:37.8]} 42. Ke2 {[%clk 0:01:01.1]} 42... Rb3
{[%clk 0:00:35.3]} 43. Ra6 {[%clk 0:01:00.7]} 43... Rb2+ {[%clk 0:00:34.5]} 44.
Kf3 {[%clk 0:00:59.9]} 44... Bc7 {[%clk 0:00:34.1]} 45. Ra7 {[%clk 0:00:58.6]}
45... Bd6 {[%clk 0:00:33.7]} 46. Nd7 {[%clk 0:00:57.4]} 46... Ne4 {[%clk
0:00:30]} 47. Nc5 {[%clk 0:00:56.7]} 47... Nd2+ {[%clk 0:00:29.6]} 48. Bxd2
{[%clk 0:00:53.4]} 48... Rxd2 {[%clk 0:00:30.5]} 49. Rd7 {[%clk 0:00:53.5]}
49... Bxc5 {[%clk 0:00:18]} 50. dxc5 {[%clk 0:00:53.1]} 50... d4 {[%clk
0:00:18.9]} 51. c6 {[%clk 0:00:51.9]} 51... d3 {[%clk 0:00:14.7]} 52. c7 {[%clk
0:00:51.7]} 52... Rc2 {[%clk 0:00:15.3]} 53. Rd8+ {[%clk 0:00:51.3]} 53... Kh7
{[%clk 0:00:15.8]} 54. c8=Q {[%clk 0:00:51]} 1-0

[Event "Early-Titled-Tuesday-Blitz-March-05-2024"]
[Site "Chess.com"]
[Date "2024.03.05"]
[Round "5"]
[White "Bkmzzzzz"]
[Black "IvanSoriano1"]
[Result "0-1"]
[WhiteElo "2430"]
[BlackElo "2576"]
[TimeControl "180+1"]
[EndTime "8:58:04 PST"]
[Termination "IvanSoriano1 won by resignation"]

1. e4 {[%clk 0:03:00.9]} 1... e5 {[%clk 0:02:59.4]} 2. Nf3 {[%clk 0:03:00.1]}
2... Nc6 {[%clk 0:02:59.5]} 3. Nc3 {[%clk 0:02:59.5]} 3... Nf6 {[%clk
0:02:59.2]} 4. d4 {[%clk 0:03:00.1]} 4... exd4 {[%clk 0:02:59.9]} 5. Nxd4 {[%clk
0:03:00.7]} 5... Bb4 {[%clk 0:03:00.1]} 6. Nxc6 {[%clk 0:03:00.8]} 6... bxc6
{[%clk 0:03:01]} 7. Bd3 {[%clk 0:03:00.9]} 7... d5 {[%clk 0:03:00.4]} 8. exd5
{[%clk 0:03:01.8]} 8... O-O {[%clk 0:03:00.6]} 9. O-O {[%clk 0:03:02.3]} 9...
cxd5 {[%clk 0:03:00.4]} 10. Bg5 {[%clk 0:03:02.9]} 10... c6 {[%clk 0:03:00.3]}
11. Na4 {[%clk 0:03:02.3]} 11... Bd6 {[%clk 0:02:54.4]} 12. c3 {[%clk
0:03:02.1]} 12... Rb8 {[%clk 0:02:53.3]} 13. b4 {[%clk 0:03:01.1]} 13... Re8
{[%clk 0:02:48.9]} 14. Nc5 {[%clk 0:02:56.3]} 14... d4 {[%clk 0:02:41.3]} 15.
Ne4 {[%clk 0:02:37.8]} 15... Be7 {[%clk 0:02:38]} 16. Bxf6 {[%clk 0:01:19.2]}
16... Bxf6 {[%clk 0:02:37.1]} 17. a3 {[%clk 0:01:18.7]} 17... Be7 {[%clk
0:02:29.5]} 18. cxd4 {[%clk 0:01:13.5]} 18... Qxd4 {[%clk 0:02:26.9]} 19. Rc1
{[%clk 0:01:07.6]} 19... Bf5 {[%clk 0:02:20.3]} 20. Qf3 {[%clk 0:00:54.7]} 20...
Bg6 {[%clk 0:01:55.4]} 21. Rfd1 {[%clk 0:00:54.2]} 21... Rbd8 {[%clk 0:01:52.2]}
22. h3 {[%clk 0:00:40.5]} 22... Bf8 {[%clk 0:01:48.2]} 23. Nc5 {[%clk
0:00:31.5]} 23... Qb2 {[%clk 0:01:10.7]} 24. Bxg6 {[%clk 0:00:25.5]} 24... hxg6
{[%clk 0:01:11.6]} 25. Qxc6 {[%clk 0:00:19.8]} 25... Qxa3 {[%clk 0:01:08]} 26.
Ra1 {[%clk 0:00:17.6]} 26... Qxb4 {[%clk 0:01:07.3]} 27. Nd7 {[%clk 0:00:17.3]}
27... a5 {[%clk 0:01:01.5]} 28. Qa6 {[%clk 0:00:15.1]} 28... Ra8 {[%clk
0:00:39.6]} 29. Qc6 {[%clk 0:00:14.8]} 29... a4 {[%clk 0:00:35.4]} 30. Rdb1
{[%clk 0:00:14.5]} 30... Qd4 {[%clk 0:00:34.8]} 31. Nb6 {[%clk 0:00:13.8]} 31...
Rab8 {[%clk 0:00:32]} 32. Rxa4 {[%clk 0:00:12.6]} 32... Qe5 {[%clk 0:00:23.4]}
33. Raa1 {[%clk 0:00:12.6]} 33... Bd6 {[%clk 0:00:23.3]} 34. g3 {[%clk
0:00:11.3]} 34... Bc5 {[%clk 0:00:23.6]} 35. Nc4 {[%clk 0:00:10.3]} 35... Qxg3+
{[%clk 0:00:23.4]} 36. Qg2 {[%clk 0:00:07.5]} 36... Bxf2+ {[%clk 0:00:23.4]} 37.
Kf1 {[%clk 0:00:06.4]} 37... Qd3+ {[%clk 0:00:21.9]} 38. Kxf2 {[%clk 0:00:06]}
38... Re2+ {[%clk 0:00:20.7]} 0-1